[Event "*** Titled Tuesday Blitz"]
[Site "Chess.com"]
[Date "2019.07.02"]
[Round "4"]
[White "IwkooO"]
[Black "Bad4life"]
[Result "1-0"]
[WhiteElo "2527"]
[BlackElo "2361"]
[TimeControl "180+2"]
[EndTime "13:50:22 PDT"]
[Termination "IwkooO won by resignation"]

1. d4 {[%clk 0:03:01.8]} 1... Nf6 {[%clk 0:02:59.9]} 2. Nf3 {[%clk 0:03:01.1]}
2... e6 {[%clk 0:02:58.9]} 3. c4 {[%clk 0:03:02.4]} 3... c5 {[%clk 0:03:00.3]}
4. d5 {[%clk 0:03:02.8]} 4... exd5 {[%clk 0:03:02.2]} 5. cxd5 {[%clk 0:03:04]}
5... d6 {[%clk 0:03:03.9]} 6. Nc3 {[%clk 0:03:05.1]} 6... g6 {[%clk 0:03:05.5]}
7. g3 {[%clk 0:03:06.3]} 7... Bg7 {[%clk 0:03:06.7]} 8. Bg2 {[%clk 0:03:05.1]}
8... O-O {[%clk 0:03:08.6]} 9. O-O {[%clk 0:03:01.7]} 9... Re8 {[%clk
0:03:10.5]} 10. Re1 {[%clk 0:02:57.8]} 10... Nbd7 {[%clk 0:02:58.6]} 11. e4
{[%clk 0:02:53.5]} 11... Rb8 {[%clk 0:02:48.2]} 12. Bf4 {[%clk 0:02:52.1]} 12...
Ne5 {[%clk 0:02:40]} 13. Bxe5 {[%clk 0:02:50.5]} 13... dxe5 {[%clk 0:02:41.9]}
14. a4 {[%clk 0:02:51.4]} 14... a6 {[%clk 0:02:18.4]} 15. a5 {[%clk 0:02:47.9]}
15... Bf8 {[%clk 0:02:17.6]} 16. Nd2 {[%clk 0:02:49.1]} 16... Bg4 {[%clk
0:02:16.2]} 17. Qa4 {[%clk 0:02:46.4]} 17... Bd7 {[%clk 0:02:16.5]} 18. Qc2
{[%clk 0:02:44.1]} 18... Bd6 {[%clk 0:02:15.2]} 19. Nc4 {[%clk 0:02:44.7]} 19...
Bc7 {[%clk 0:02:16.8]} 20. Na4 {[%clk 0:02:42.6]} 20... Bxa5 {[%clk 0:02:10.2]}
21. Nxa5 {[%clk 0:02:42.2]} 21... Qxa5 {[%clk 0:02:10.2]} 22. Qxc5 {[%clk
0:02:42.7]} 22... Qd2 {[%clk 0:01:58.5]} 23. Qc3 {[%clk 0:02:32.2]} 23... Qh6
{[%clk 0:01:52.2]} 24. Nb6 {[%clk 0:02:28.7]} 24... Bh3 {[%clk 0:01:53.2]} 25.
Bf3 {[%clk 0:02:28.6]} 25... Bg4 {[%clk 0:01:52.3]} 26. Bg2 {[%clk 0:02:28.9]}
26... Bh3 {[%clk 0:01:53.4]} 27. Rac1 {[%clk 0:02:27.9]} 27... Ng4 {[%clk
0:01:42.3]} 28. Qf3 {[%clk 0:02:21.8]} 28... Nxh2 {[%clk 0:01:16.9]} 29. Qe3
{[%clk 0:02:21.8]} 29... Qxe3 {[%clk 0:00:38.5]} 30. Rxe3 {[%clk 0:02:23.7]}
30... Ng4 {[%clk 0:00:21.3]} 31. Bxh3 {[%clk 0:02:24.7]} 31... Nxe3 {[%clk
0:00:22.5]} 32. fxe3 {[%clk 0:02:26.6]} 32... Re7 {[%clk 0:00:20.8]} 33. d6
{[%clk 0:02:26.2]} 33... Ree8 {[%clk 0:00:19.9]} 34. d7 {[%clk 0:02:27.1]} 34...
Red8 {[%clk 0:00:21]} 35. Rc8 {[%clk 0:02:28.2]} 35... Kf8 {[%clk 0:00:21.7]}
36. Rxb8 {[%clk 0:02:28.6]} 36... Rxb8 {[%clk 0:00:23.6]} 37. Nc8 {[%clk
0:02:30.2]} 1-0

[Event "*** Titled Tuesday Blitz"]
[Site "Chess.com"]
[Date "2019.07.02"]
[Round "4"]
[White "stoleriu"]
[Black "PIwan"]
[Result "0-1"]
[WhiteElo "2523"]
[BlackElo "2460"]
[TimeControl "180+2"]
[EndTime "13:50:23 PDT"]
[Termination "PIwan won by resignation"]

1. e4 {[%clk 0:03:01.9]} 1... e6 {[%clk 0:01:54.2]} 2. d4 {[%clk 0:03:01.6]}
2... d5 {[%clk 0:01:56]} 3. Nc3 {[%clk 0:03:02.7]} 3... Nf6 {[%clk 0:01:56.5]}
4. e5 {[%clk 0:03:03.8]} 4... Nfd7 {[%clk 0:01:57.3]} 5. f4 {[%clk 0:03:05.7]}
5... c5 {[%clk 0:01:58.9]} 6. Nf3 {[%clk 0:03:06.5]} 6... Nc6 {[%clk 0:02:00.4]}
7. Be3 {[%clk 0:03:07.2]} 7... Qb6 {[%clk 0:02:01.9]} 8. Na4 {[%clk 0:02:59.5]}
8... Qa5+ {[%clk 0:02:03.2]} 9. c3 {[%clk 0:03:00.8]} 9... cxd4 {[%clk
0:02:04.4]} 10. b4 {[%clk 0:03:02.1]} 10... Nxb4 {[%clk 0:02:06]} 11. cxb4
{[%clk 0:03:02.9]} 11... Bxb4+ {[%clk 0:02:07.9]} 12. Bd2 {[%clk 0:03:04]} 12...
Bxd2+ {[%clk 0:02:08.4]} 13. Nxd2 {[%clk 0:03:05.9]} 13... b6 {[%clk 0:02:09.4]}
14. Kf2 {[%clk 0:02:58.2]} 14... O-O {[%clk 0:01:55.6]} 15. Bd3 {[%clk
0:02:43.3]} 15... Nc5 {[%clk 0:01:35.7]} 16. Nxc5 {[%clk 0:02:42.2]} 16... bxc5
{[%clk 0:01:37.6]} 17. Re1 {[%clk 0:02:25.1]} 17... c4 {[%clk 0:01:30.8]} 18.
Be2 {[%clk 0:02:26.1]} 18... d3 {[%clk 0:01:27.7]} 19. Bf3 {[%clk 0:02:25.5]}
19... Qc5+ {[%clk 0:01:23.1]} 20. Kg3 {[%clk 0:02:26.1]} 20... f6 {[%clk
0:01:10.2]} 21. h3 {[%clk 0:02:20]} 21... fxe5 {[%clk 0:01:09.5]} 22. Rxe5
{[%clk 0:02:21.9]} 22... Qd4 {[%clk 0:00:59.1]} 23. Ne4 {[%clk 0:02:03.1]} 23...
Bb7 {[%clk 0:00:42.9]} 24. Qe1 {[%clk 0:01:37.3]} 24... dxe4 {[%clk 0:00:36.1]}
25. Bxe4 {[%clk 0:01:39.2]} 25... d2 {[%clk 0:00:32.1]} 26. Qe2 {[%clk
0:01:34.6]} 26... Bxe4 {[%clk 0:00:22.6]} 27. Rxe4 {[%clk 0:01:36.5]} 27... Qxa1
{[%clk 0:00:21.1]} 0-1

[Event "*** Titled Tuesday Blitz"]
[Site "Chess.com"]
[Date "2019.07.02"]
[Round "4"]
[White "TheCount"]
[Black "Muisback26"]
[Result "1-0"]
[WhiteElo "2791"]
[BlackElo "2946"]
[TimeControl "180+2"]
[EndTime "13:50:48 PDT"]
[Termination "TheCount won by resignation"]

1. Nf3 {[%clk 0:03:01.9]} 1... g6 {[%clk 0:02:59.3]} 2. g3 {[%clk 0:02:57]} 2...
Bg7 {[%clk 0:02:57.3]} 3. d4 {[%clk 0:02:57.8]} 3... d6 {[%clk 0:02:58.3]} 4.
Bg2 {[%clk 0:02:59.2]} 4... Nf6 {[%clk 0:02:57.5]} 5. O-O {[%clk 0:03:00.8]}
5... O-O {[%clk 0:02:58.6]} 6. a4 {[%clk 0:03:02.4]} 6... a6 {[%clk 0:02:59]} 7.
a5 {[%clk 0:03:02.8]} 7... Nbd7 {[%clk 0:03:00.1]} 8. Nc3 {[%clk 0:02:55.3]}
8... e5 {[%clk 0:03:01.3]} 9. dxe5 {[%clk 0:02:56.4]} 9... dxe5 {[%clk
0:03:02.1]} 10. e4 {[%clk 0:02:57.8]} 10... b5 {[%clk 0:02:45.6]} 11. axb6
{[%clk 0:02:56]} 11... cxb6 {[%clk 0:02:47.1]} 12. Qe2 {[%clk 0:02:53.4]} 12...
Bb7 {[%clk 0:02:48.1]} 13. Rd1 {[%clk 0:02:51.8]} 13... Qc7 {[%clk 0:02:46]} 14.
Nd5 {[%clk 0:02:40.4]} 14... Nxd5 {[%clk 0:02:44.5]} 15. exd5 {[%clk 0:02:42.3]}
15... Rac8 {[%clk 0:02:15.7]} 16. c3 {[%clk 0:02:40.6]} 16... b5 {[%clk
0:01:44.1]} 17. Ng5 {[%clk 0:02:31.9]} 17... Nc5 {[%clk 0:01:41.3]} 18. Be3
{[%clk 0:02:04.4]} 18... Na4 {[%clk 0:01:31]} 19. c4 {[%clk 0:01:44.3]} 19... h6
{[%clk 0:01:23.3]} 20. cxb5 {[%clk 0:01:35.8]} 20... axb5 {[%clk 0:01:23.5]} 21.
Qxb5 {[%clk 0:01:31.8]} 21... Nxb2 {[%clk 0:00:27.8]} 22. Rdc1 {[%clk
0:01:31.7]} 22... Nc4 {[%clk 0:00:19.5]} 23. d6 {[%clk 0:01:31.2]} 23... Qxd6
{[%clk 0:00:11.7]} 24. Bxb7 {[%clk 0:01:30.1]} 24... Nxe3 {[%clk 0:00:13.3]} 25.
Rxc8 {[%clk 0:01:24.4]} 25... Rxc8 {[%clk 0:00:11.5]} 26. Bxc8 {[%clk
0:01:26.3]} 26... Nc2 {[%clk 0:00:10.5]} 27. Qe8+ {[%clk 0:01:25.8]} 27... Qf8
{[%clk 0:00:11.9]} 28. Qxf8+ {[%clk 0:01:26.4]} 1-0

[Event "*** Titled Tuesday Blitz"]
[Site "Chess.com"]
[Date "2019.07.02"]
[Round "4"]
[White "ChainsOfFantasia"]
[Black "StoreySniper"]
[Result "1-0"]
[WhiteElo "2478"]
[BlackElo "2463"]
[TimeControl "180+2"]
[EndTime "13:50:52 PDT"]
[Termination "ChainsOfFantasia won by checkmate"]

1. d4 {[%clk 0:03:01.9]} 1... b6 {[%clk 0:03:01.2]} 2. a4 {[%clk 0:03:01.1]}
2... g6 {[%clk 0:03:03.1]} 3. a5 {[%clk 0:03:02.2]} 3... Bb7 {[%clk 0:03:03.5]}
4. Nc3 {[%clk 0:03:01.7]} 4... Bg7 {[%clk 0:02:59.8]} 5. e4 {[%clk 0:03:01.6]}
5... e6 {[%clk 0:03:00.2]} 6. h4 {[%clk 0:03:01.1]} 6... h6 {[%clk 0:03:00.6]}
7. f4 {[%clk 0:03:00.7]} 7... Nf6 {[%clk 0:02:57.6]} 8. Bd3 {[%clk 0:02:58.8]}
8... Nc6 {[%clk 0:02:57.2]} 9. a6 {[%clk 0:02:55.5]} 9... Bc8 {[%clk 0:02:56.8]}
10. Nf3 {[%clk 0:02:42.6]} 10... Nb4 {[%clk 0:02:56.7]} 11. Be2 {[%clk
0:02:40.5]} 11... d5 {[%clk 0:02:54.2]} 12. e5 {[%clk 0:02:36]} 12... Ne4 {[%clk
0:02:52.9]} 13. Ra4 {[%clk 0:02:16.9]} 13... Ng3 {[%clk 0:02:41.8]} 14. Rh3
{[%clk 0:02:04.9]} 14... Nxe2 {[%clk 0:02:41.4]} 15. Qxe2 {[%clk 0:02:03]} 15...
Nc6 {[%clk 0:02:39.2]} 16. h5 {[%clk 0:02:03.1]} 16... Bd7 {[%clk 0:02:30.4]}
17. hxg6 {[%clk 0:02:00.3]} 17... fxg6 {[%clk 0:02:31.6]} 18. Qd3 {[%clk
0:01:51.4]} 18... Qe7 {[%clk 0:02:32.4]} 19. Qxg6+ {[%clk 0:01:50.3]} 19... Kd8
{[%clk 0:02:32.5]} 20. Rg3 {[%clk 0:01:45.2]} 20... Rg8 {[%clk 0:02:22.7]} 21.
f5 {[%clk 0:01:40.2]} 21... exf5 {[%clk 0:02:14.7]} 22. Nxd5 {[%clk 0:01:20.3]}
22... Nxe5 {[%clk 0:02:12.7]} 23. Nxe5 {[%clk 0:01:12.1]} 23... Qh4 {[%clk
0:02:00.4]} 24. Rc4 {[%clk 0:01:04.8]} 24... Be8 {[%clk 0:01:55]} 25. Nc6+
{[%clk 0:00:50.9]} 25... Bxc6 {[%clk 0:01:43.7]} 26. Rxc6 {[%clk 0:00:52.8]}
26... Qh1+ {[%clk 0:01:32.3]} 27. Kf2 {[%clk 0:00:46.2]} 27... Bxd4+ {[%clk
0:01:32.6]} 28. Be3 {[%clk 0:00:46.6]} 28... Bxe3+ {[%clk 0:01:31.1]} 29. Nxe3
{[%clk 0:00:44.4]} 29... Rxg6 {[%clk 0:01:30.1]} 30. Rgxg6 {[%clk 0:00:46]}
30... Kd7 {[%clk 0:01:29.1]} 31. Nd5 {[%clk 0:00:42.5]} 31... Qh4+ {[%clk
0:01:27.7]} 32. Kf1 {[%clk 0:00:39.3]} 32... Qh1+ {[%clk 0:01:19.3]} 33. Kf2
{[%clk 0:00:40.4]} 33... Re8 {[%clk 0:01:18.9]} 34. Rxc7+ {[%clk 0:00:40.6]}
34... Kd8 {[%clk 0:01:18]} 35. Rd6# {[%clk 0:00:41.5]} 1-0

[Event "*** Titled Tuesday Blitz"]
[Site "Chess.com"]
[Date "2019.07.02"]
[Round "4"]
[White "evgenyermolaev"]
[Black "Yoshkinkot"]
[Result "1-0"]
[WhiteElo "2507"]
[BlackElo "2535"]
[TimeControl "180+2"]
[EndTime "13:50:58 PDT"]
[Termination "evgenyermolaev won by resignation"]

1. e4 {[%clk 0:03:01.8]} 1... c5 {[%clk 0:02:56.1]} 2. Nf3 {[%clk 0:03:02.6]}
2... d6 {[%clk 0:02:56]} 3. b3 {[%clk 0:03:03.7]} 3... Nf6 {[%clk 0:02:52.4]} 4.
d3 {[%clk 0:03:03.2]} 4... Nc6 {[%clk 0:02:48.1]} 5. Bb2 {[%clk 0:03:02.4]} 5...
e5 {[%clk 0:02:49.5]} 6. Nbd2 {[%clk 0:03:02.9]} 6... g6 {[%clk 0:02:44.4]} 7.
a4 {[%clk 0:03:03]} 7... Bg7 {[%clk 0:02:44.4]} 8. Be2 {[%clk 0:03:02.7]} 8...
O-O {[%clk 0:02:45.2]} 9. O-O {[%clk 0:02:58.8]} 9... Qc7 {[%clk 0:02:39.7]} 10.
Nc4 {[%clk 0:02:59.8]} 10... h6 {[%clk 0:02:35.7]} 11. Ne3 {[%clk 0:02:54.1]}
11... Ne7 {[%clk 0:02:30.3]} 12. c3 {[%clk 0:02:54]} 12... Ng4 {[%clk
0:02:25.7]} 13. Nxg4 {[%clk 0:02:45.8]} 13... Bxg4 {[%clk 0:02:25.5]} 14. d4
{[%clk 0:02:47.7]} 14... exd4 {[%clk 0:02:01.6]} 15. cxd4 {[%clk 0:02:49.6]}
15... Nc6 {[%clk 0:02:03.1]} 16. Rc1 {[%clk 0:02:46.9]} 16... Qe7 {[%clk
0:01:28.8]} 17. e5 {[%clk 0:02:39]} 17... cxd4 {[%clk 0:00:53.2]} 18. Nxd4
{[%clk 0:02:32.9]} 18... Nxd4 {[%clk 0:00:53.5]} 19. Bxd4 {[%clk 0:02:29.2]}
19... Bxe2 {[%clk 0:00:51]} 20. Qxe2 {[%clk 0:02:31.1]} 20... Bxe5 {[%clk
0:00:49.7]} 21. Rfe1 {[%clk 0:02:29.5]} 21... Rfe8 {[%clk 0:00:50.1]} 22. Qb5
{[%clk 0:02:19.6]} 22... a6 {[%clk 0:00:33.9]} 23. Qd5 {[%clk 0:02:18.5]} 23...
Rad8 {[%clk 0:00:24.4]} 24. Bb6 {[%clk 0:01:56.8]} 24... Rc8 {[%clk 0:00:10.8]}
25. Rxc8 {[%clk 0:01:54.7]} 25... Rxc8 {[%clk 0:00:11.7]} 26. f4 {[%clk
0:01:55.6]} 26... Bd4+ {[%clk 0:00:12.8]} 27. Kf1 {[%clk 0:01:57.2]} 27... Qxe1+
{[%clk 0:00:11.5]} 28. Kxe1 {[%clk 0:01:58.5]} 28... Bxb6 {[%clk 0:00:11.6]} 29.
Qxb7 {[%clk 0:01:59.8]} 29... Re8+ {[%clk 0:00:13]} 30. Kd1 {[%clk 0:01:58.2]}
30... Be3 {[%clk 0:00:10.3]} 31. Qxa6 {[%clk 0:01:55.4]} 31... Bxf4 {[%clk
0:00:10.2]} 32. g3 {[%clk 0:01:56.5]} 32... Be5 {[%clk 0:00:11.4]} 33. Qc6
{[%clk 0:01:51.5]} 33... Rb8 {[%clk 0:00:11]} 34. Kc2 {[%clk 0:01:49]} 1-0

[Event "*** Titled Tuesday Blitz"]
[Site "Chess.com"]
[Date "2019.07.02"]
[Round "4"]
[White "DanielNaroditsky"]
[Black "KamilPlichta"]
[Result "1-0"]
[WhiteElo "3026"]
[BlackElo "2796"]
[TimeControl "180+2"]
[EndTime "13:51:09 PDT"]
[Termination "DanielNaroditsky won by resignation"]

1. Nf3 {[%clk 0:02:50.9]} 1... g6 {[%clk 0:03:01.3]} 2. e4 {[%clk 0:02:51.6]}
2... Bg7 {[%clk 0:03:02.7]} 3. d4 {[%clk 0:02:52.7]} 3... c5 {[%clk 0:03:04.1]}
4. dxc5 {[%clk 0:02:53.6]} 4... Qa5+ {[%clk 0:03:05.3]} 5. Bd2 {[%clk
0:02:53.5]} 5... Qxc5 {[%clk 0:03:06.3]} 6. Bc3 {[%clk 0:02:55.4]} 6... Nf6
{[%clk 0:03:07.2]} 7. Bd3 {[%clk 0:02:53.5]} 7... d6 {[%clk 0:03:06.6]} 8. h3
{[%clk 0:02:52.4]} 8... O-O {[%clk 0:03:07.5]} 9. O-O {[%clk 0:02:51.8]} 9...
Nbd7 {[%clk 0:03:08]} 10. a4 {[%clk 0:02:49.8]} 10... b6 {[%clk 0:03:06.8]} 11.
a5 {[%clk 0:02:44.8]} 11... Bb7 {[%clk 0:02:54.3]} 12. Re1 {[%clk 0:02:22.9]}
12... a6 {[%clk 0:02:46.3]} 13. Bd4 {[%clk 0:02:20.3]} 13... Qc7 {[%clk
0:02:46.9]} 14. axb6 {[%clk 0:02:18.3]} 14... Nxb6 {[%clk 0:02:47.3]} 15. Nc3
{[%clk 0:02:19.2]} 15... Nc4 {[%clk 0:02:39]} 16. b3 {[%clk 0:01:47.2]} 16...
Nb2 {[%clk 0:02:39.4]} 17. Nb5 {[%clk 0:01:40.6]} 17... axb5 {[%clk 0:02:21.6]}
18. Bxb2 {[%clk 0:01:41.8]} 18... Rxa1 {[%clk 0:02:13]} 19. Bxa1 {[%clk
0:01:43.7]} 19... b4 {[%clk 0:02:00.7]} 20. Qd2 {[%clk 0:01:37.4]} 20... Rb8
{[%clk 0:01:29.1]} 21. Bd4 {[%clk 0:01:37.5]} 21... Bc6 {[%clk 0:01:25.3]} 22.
e5 {[%clk 0:01:27.4]} 22... Nd5 {[%clk 0:01:15.9]} 23. e6 {[%clk 0:01:23.2]}
23... f5 {[%clk 0:01:05.6]} 24. Bxg7 {[%clk 0:00:58.7]} 24... Kxg7 {[%clk
0:01:06.5]} 25. Nd4 {[%clk 0:01:00.6]} 25... Nf6 {[%clk 0:00:58.2]} 26. Ra1
{[%clk 0:00:47]} 26... Be4 {[%clk 0:00:56.7]} 27. Bc4 {[%clk 0:00:45.3]} 27...
Ra8 {[%clk 0:00:47.5]} 28. Rxa8 {[%clk 0:00:44.9]} 28... Bxa8 {[%clk 0:00:48.4]}
29. Qxb4 {[%clk 0:00:46.4]} 29... Qa7 {[%clk 0:00:45.8]} 30. Qc3 {[%clk
0:00:39.3]} 30... Ne4 {[%clk 0:00:46.4]} 31. Nxf5+ {[%clk 0:00:40.1]} 1-0

[Event "*** Titled Tuesday Blitz"]
[Site "Chess.com"]
[Date "2019.07.02"]
[Round "4"]
[White "SanchezKelvin"]
[Black "ASargsyan1"]
[Result "0-1"]
[WhiteElo "2395"]
[BlackElo "2599"]
[TimeControl "180+2"]
[EndTime "13:51:17 PDT"]
[Termination "ASargsyan1 won by resignation"]

1. d4 {[%clk 0:03:01.9]} 1... d5 {[%clk 0:02:58]} 2. c4 {[%clk 0:03:01.7]} 2...
c6 {[%clk 0:02:54.9]} 3. Nf3 {[%clk 0:03:03.6]} 3... Nf6 {[%clk 0:02:55.5]} 4.
Nc3 {[%clk 0:03:02.9]} 4... e6 {[%clk 0:02:56.1]} 5. Bg5 {[%clk 0:03:02.3]} 5...
dxc4 {[%clk 0:02:56.1]} 6. e4 {[%clk 0:03:02.7]} 6... b5 {[%clk 0:02:57.3]} 7.
e5 {[%clk 0:03:02.9]} 7... h6 {[%clk 0:02:58.5]} 8. Bh4 {[%clk 0:03:00.3]} 8...
g5 {[%clk 0:03:00]} 9. exf6 {[%clk 0:03:02.2]} 9... gxh4 {[%clk 0:03:00.4]} 10.
Ne5 {[%clk 0:03:01.7]} 10... Qxf6 {[%clk 0:02:32.2]} 11. Be2 {[%clk 0:02:57.8]}
11... Bd6 {[%clk 0:02:14.8]} 12. Ne4 {[%clk 0:02:53.1]} 12... Bb4+ {[%clk
0:02:15.5]} 13. Kf1 {[%clk 0:02:49.3]} 13... Qf4 {[%clk 0:02:00]} 14. Bf3 {[%clk
0:02:39.2]} 14... Be7 {[%clk 0:01:25]} 15. a4 {[%clk 0:02:12]} 15... b4 {[%clk
0:00:51.5]} 16. g3 {[%clk 0:02:06]} 16... Qf5 {[%clk 0:00:51.6]} 17. Nxc4 {[%clk
0:02:01.5]} 17... Ba6 {[%clk 0:00:51.5]} 18. b3 {[%clk 0:02:01.3]} 18... Nd7
{[%clk 0:00:46.5]} 19. Ke1 {[%clk 0:01:32.8]} 19... O-O {[%clk 0:00:45.4]} 20.
Qd2 {[%clk 0:01:20.9]} 20... Qxf3 {[%clk 0:00:44]} 21. Qxh6 {[%clk 0:00:18.7]}
21... Qxh1+ {[%clk 0:00:39.2]} 22. Kd2 {[%clk 0:00:19.2]} 22... Qxe4 {[%clk
0:00:40.6]} 23. gxh4 {[%clk 0:00:20.1]} 23... Qxd4+ {[%clk 0:00:38.4]} 24. Kc2
{[%clk 0:00:21]} 24... Qxa1 {[%clk 0:00:35.7]} 0-1

[Event "*** Titled Tuesday Blitz"]
[Site "Chess.com"]
[Date "2019.07.02"]
[Round "4"]
[White "Warerman"]
[Black "Walter_White_Poland"]
[Result "1-0"]
[WhiteElo "2433"]
[BlackElo "2292"]
[TimeControl "180+2"]
[EndTime "13:51:21 PDT"]
[Termination "Warerman won by checkmate"]

1. d4 {[%clk 0:03:01.9]} 1... d5 {[%clk 0:03:00.1]} 2. c4 {[%clk 0:03:02.6]}
2... e6 {[%clk 0:03:01.1]} 3. Nc3 {[%clk 0:03:03.2]} 3... Nf6 {[%clk 0:03:01.9]}
4. cxd5 {[%clk 0:03:04.2]} 4... exd5 {[%clk 0:03:02.4]} 5. Bg5 {[%clk
0:03:05.2]} 5... c6 {[%clk 0:03:01.9]} 6. Qc2 {[%clk 0:03:06]} 6... Be7 {[%clk
0:03:02.5]} 7. e3 {[%clk 0:03:07.2]} 7... Nbd7 {[%clk 0:03:03]} 8. Bd3 {[%clk
0:03:07.9]} 8... Nf8 {[%clk 0:03:03.3]} 9. Nge2 {[%clk 0:02:52.7]} 9... Ne6
{[%clk 0:02:56.8]} 10. Bh4 {[%clk 0:02:53.5]} 10... h5 {[%clk 0:02:53.7]} 11. h3
{[%clk 0:02:44.8]} 11... Bd7 {[%clk 0:02:19.8]} 12. O-O {[%clk 0:02:18]} 12...
g5 {[%clk 0:02:19.3]} 13. Bg3 {[%clk 0:02:18]} 13... h4 {[%clk 0:02:20.4]} 14.
Be5 {[%clk 0:02:17.7]} 14... Rg8 {[%clk 0:02:21.2]} 15. f3 {[%clk 0:02:17.1]}
15... a5 {[%clk 0:01:18.3]} 16. Rad1 {[%clk 0:02:16]} 16... Qb6 {[%clk
0:01:03.8]} 17. Kh1 {[%clk 0:01:59.4]} 17... Qa7 {[%clk 0:01:01.7]} 18. e4
{[%clk 0:01:55.3]} 18... Rc8 {[%clk 0:00:49.1]} 19. Qb3 {[%clk 0:01:48.6]} 19...
c5 {[%clk 0:00:26.7]} 20. exd5 {[%clk 0:01:33.1]} 20... Nxd4 {[%clk 0:00:25.1]}
21. Nxd4 {[%clk 0:01:23.3]} 21... cxd4 {[%clk 0:00:26]} 22. Nb5 {[%clk
0:01:21.3]} 22... Qc5 {[%clk 0:00:17.5]} 23. d6 {[%clk 0:00:51.2]} 23... Qxe5
{[%clk 0:00:14.6]} 24. Rfe1 {[%clk 0:00:52.1]} 24... Qd5 {[%clk 0:00:10.9]} 25.
dxe7 {[%clk 0:00:47.6]} 25... Qxb3 {[%clk 0:00:10.6]} 26. Nd6# {[%clk
0:00:46.8]} 1-0

[Event "*** Titled Tuesday Blitz"]
[Site "Chess.com"]
[Date "2019.07.02"]
[Round "4"]
[White "AbasovN"]
[Black "RzayevB"]
[Result "1-0"]
[WhiteElo "2864"]
[BlackElo "2591"]
[TimeControl "180+2"]
[EndTime "13:51:23 PDT"]
[Termination "AbasovN won by resignation"]

1. e4 {[%clk 0:02:58.9]} 1... c5 {[%clk 0:02:58.6]} 2. c3 {[%clk 0:02:59.3]}
2... Nf6 {[%clk 0:02:58.8]} 3. e5 {[%clk 0:03:00.4]} 3... Nd5 {[%clk 0:03:00]}
4. Nf3 {[%clk 0:03:02.3]} 4... e6 {[%clk 0:03:00.4]} 5. d4 {[%clk 0:03:00]} 5...
cxd4 {[%clk 0:03:02.3]} 6. cxd4 {[%clk 0:03:01.9]} 6... d6 {[%clk 0:03:03.8]} 7.
Bc4 {[%clk 0:02:57.6]} 7... Nc6 {[%clk 0:02:46.8]} 8. O-O {[%clk 0:02:57]} 8...
dxe5 {[%clk 0:02:43.3]} 9. dxe5 {[%clk 0:02:58.9]} 9... Be7 {[%clk 0:02:43.9]}
10. Bd2 {[%clk 0:03:00.3]} 10... O-O {[%clk 0:02:44.7]} 11. Nc3 {[%clk
0:03:00.8]} 11... Nxc3 {[%clk 0:02:37.4]} 12. Bxc3 {[%clk 0:03:02.7]} 12... Qxd1
{[%clk 0:02:32.3]} 13. Rfxd1 {[%clk 0:03:02.6]} 13... Rd8 {[%clk 0:02:31.3]} 14.
Nd2 {[%clk 0:02:57.8]} 14... Bb4 {[%clk 0:02:27.3]} 15. Bxb4 {[%clk 0:02:54.8]}
15... Nxb4 {[%clk 0:02:29.2]} 16. Ne4 {[%clk 0:02:56.4]} 16... Bd7 {[%clk
0:02:26.2]} 17. Nd6 {[%clk 0:02:55.3]} 17... Bc6 {[%clk 0:02:26.6]} 18. a3
{[%clk 0:02:54.7]} 18... Nd5 {[%clk 0:02:27.6]} 19. Bxd5 {[%clk 0:02:56.2]}
19... Bxd5 {[%clk 0:02:29.5]} 20. Rac1 {[%clk 0:02:57.3]} 20... Rd7 {[%clk
0:02:28.5]} 21. f4 {[%clk 0:02:55.2]} 21... h5 {[%clk 0:02:26.8]} 22. Kf2 {[%clk
0:02:53.5]} 22... Rad8 {[%clk 0:02:26.4]} 23. g3 {[%clk 0:02:49.9]} 23... Bc6
{[%clk 0:02:00.2]} 24. Ke3 {[%clk 0:02:49.7]} 24... Bd5 {[%clk 0:02:01.1]} 25.
Rd4 {[%clk 0:02:42.7]} 25... g6 {[%clk 0:01:59.6]} 26. Rc3 {[%clk 0:02:40.2]}
26... Bc6 {[%clk 0:02:00.2]} 27. b3 {[%clk 0:02:35.3]} 27... Bd5 {[%clk
0:02:01]} 28. b4 {[%clk 0:02:35.6]} 28... Kf8 {[%clk 0:01:55]} 29. b5 {[%clk
0:02:32.6]} 29... Ke7 {[%clk 0:01:56.1]} 30. a4 {[%clk 0:02:34.1]} 30... Kf8
{[%clk 0:01:52.5]} 31. a5 {[%clk 0:02:32.5]} 31... Kg7 {[%clk 0:01:52.2]} 32.
Rd2 {[%clk 0:02:30.7]} 32... h4 {[%clk 0:01:51]} 33. g4 {[%clk 0:02:30.2]} 33...
f6 {[%clk 0:01:52.2]} 34. g5 {[%clk 0:02:20.4]} 34... fxe5 {[%clk 0:01:50.9]}
35. fxe5 {[%clk 0:02:21.2]} 35... Rf8 {[%clk 0:01:52.1]} 36. Rf2 {[%clk
0:02:22.8]} 36... Rh8 {[%clk 0:01:48.9]} 37. h3 {[%clk 0:02:17.5]} 37... a6
{[%clk 0:01:44.2]} 38. b6 {[%clk 0:02:18.4]} 38... Bc6 {[%clk 0:01:45.1]} 39.
Rf6 {[%clk 0:02:19.1]} 39... Re7 {[%clk 0:01:34.7]} 40. Kf4 {[%clk 0:02:19.6]}
40... Rh7 {[%clk 0:01:31]} 41. Kg4 {[%clk 0:02:20.3]} 41... Rh8 {[%clk
0:01:32.5]} 42. Rc1 {[%clk 0:02:17.8]} 42... Rd8 {[%clk 0:01:04.3]} 43. Rcf1
{[%clk 0:02:09]} 43... Rdd7 {[%clk 0:00:59.8]} 44. R1f4 {[%clk 0:02:07.3]} 44...
Rd8 {[%clk 0:00:55.4]} 45. Kxh4 {[%clk 0:02:01.5]} 45... Kg8 {[%clk 0:00:53.6]}
46. Rxg6+ {[%clk 0:02:02.2]} 46... Rg7 {[%clk 0:00:53.7]} 47. Rxg7+ {[%clk
0:01:58.1]} 47... Kxg7 {[%clk 0:00:55.6]} 48. Rf7+ {[%clk 0:01:59.3]} 48... Kg6
{[%clk 0:00:56.5]} 49. Rf6+ {[%clk 0:02:00.9]} 49... Kg7 {[%clk 0:00:57.4]} 50.
Kg4 {[%clk 0:01:57.2]} 1-0